bitfinex/quotes_SOLUSD_20251030
["timestamp","ask_amount","ask_price","bid_price","bid_amount"]
[1761849819979,8.79202977,181.61,181.58,5.50718673]
[1761849820182,8.79202977,181.61,181.6,20.592]
[1761849821000,0.67,181.64,181.59,0.67]
[1761849821001,8.79202977,181.62,181.59,0.67]
[1761849821310,8.79202977,181.63,181.61,20.592]
[1761849821984,8.79202977,181.64,181.61,20.592]
[1761849822609,8.79202977,181.62,181.61,20.592]
[1761849822913,8.79202977,181.62,181.56,0.67]
[1761849822914,8.79202977,181.62,181.58,20.592]
[1761849823100,8.79202977,181.59,181.55,12.39895577]
[1761849823287,8.79202977,181.59,181.58,20.592]
[1761849823687,9.46202977,181.59,181.58,20.592]
[1761849823904,8.79202977,181.59,181.58,20.592]
[1761849824113,9.78882769,181.58,181.55,6.89098999]
[1761849824411,8.79202977,181.56,181.55,6.89098999]
[1761849828216,14.96985087,181.56,181.55,6.89098999]
[1761849829491,9.46202977,181.56,181.55,6.89098999]
[1761849829692,8.79202977,181.56,181.55,6.89098999]
[1761849829893,9.78882769,181.62,181.58,20.592]
[1761849830113,8.79202977,181.6,181.58,20.592]
[1761849830517,0.67,181.59,181.58,20.592]
[1761849830733,8.79202977,181.59,181.58,20.592]
[1761849831091,8.79202977,181.59,181.55,6.89098999]
[1761849831092,9.46202977,181.59,181.55,6.89098999]
[1761849831294,9.46202977,181.58,181.55,6.89098999]
[1761849831488,8.79202977,181.58,181.55,6.89098999]
[1761849831687,9.46202977,181.58,181.55,6.89098999]
[1761849832121,8.79202977,181.58,181.55,6.89098999]
[1761849832502,8.79202977,181.58,181.55,12.39899534]
[1761849832714,8.79202977,181.58,181.55,13.06899534]
[1761849833816,8.79202977,181.58,181.55,12.39899534]
[1761849834319,8.79202977,181.58,181.55,6.89098999]
[1761849835108,8.79202977,181.57,181.55,6.89098999]
[1761849836918,8.79202977,181.57,181.55,12.39903684]
[1761849837130,8.79202977,181.58,181.55,12.39903684]
[1761849837444,8.79202977,181.58,181.55,13.06903684]
[1761849837745,8.79202977,181.58,181.55,6.89098999]
[1761849837928,9.46202977,181.57,181.55,6.89098999]
[1761849838234,8.79202977,181.57,181.55,6.89098999]
[1761849838838,8.79202977,181.57,181.55,12.39897022]
[1761849839719,8.79202977,181.58,181.55,12.39897022]
[1761849842043,0.67,181.59,181.55,12.39897022]
[1761849842246,0.67,181.62,181.58,20.592]
[1761849842446,9.46202977,181.59,181.55,32.99097022]
[1761849842620,8.79202977,181.58,181.55,32.99097022]
[1761849843047,8.79202977,181.58,181.55,33.66097022]
[1761849843550,8.79202977,181.56,181.55,6.89098999]
[1761849844052,14.96985087,181.56,181.55,6.89098999]
[1761849844631,8.79202977,181.56,181.55,6.89098999]
[1761849845122,5.50756964,181.57,181.55,6.89098999]
[1761849845327,8.79202977,181.56,181.55,6.89098999]
[1761849845551,8.79202977,181.57,181.55,7.56098999]
[1761849845736,8.79202977,181.58,181.55,7.56098999]
[1761849846132,8.79202977,181.59,181.56,0.67]
[1761849846825,8.79202977,181.59,181.55,12.39904871]
[1761849847152,8.79202977,181.59,181.56,0.67]
[1761849847950,8.79202977,181.63,181.57,8.79202977]
[1761849848155,8.79202977,181.63,181.58,20.592]
[1761849848450,8.79202977,181.62,181.58,20.592]
[1761849848751,8.79202977,181.61,181.58,21.262]
[1761849849052,5.50581758,181.63,181.56,20.592]
[1761849849053,8.79202977,181.59,181.56,20.592]
[1761849849227,8.79202977,181.57,181.55,6.89098999]
[1761849849947,9.46202977,181.56,181.55,6.89098999]
[1761849851050,13.46257779,181.56,181.55,6.89098999]
[1761849851548,18.97039889,181.56,181.55,6.89098999]
[1761849853340,8.79202977,181.56,181.55,6.89098999]
[1761849853527,8.79202977,181.57,181.55,6.89098999]
[1761849853747,8.79202977,181.57,181.55,7.56098999]
[1761849853943,8.79202977,181.57,181.55,6.89098999]
[1761849854150,8.79202977,181.56,181.55,6.89098999]
[1761849855255,8.79202977,181.57,181.55,6.89098999]
[1761849856961,9.46202977,181.56,181.55,6.89098999]
[1761849857157,13.47289075,181.56,181.55,6.89098999]
[1761849857457,18.98071185,181.56,181.55,6.89098999]
[1761849858952,28.76953954,181.56,181.55,6.89098999]
[1761849861041,9.78882769,181.55,181.47,0.65]
[1761849861259,8.28997558,181.54,181.47,0.65]
[1761849861562,8.79202977,181.48,181.44,67.31138912]
[1761849861736,8.79202977,181.47,181.45,0.65]
[1761849862562,0.67,181.52,181.48,20.592]
[1761849862563,8.79202977,181.52,181.48,20.592]
[1761849862748,8.79202977,181.52,181.49,0.65]
[1761849862749,4.00914746,181.51,181.49,0.65]
[1761849863556,8.79202977,181.5,181.48,20.592]
[1761849863863,8.79202977,181.49,181.46,67.21079088]
[1761849864164,12.80100285,181.48,181.46,62.35]
[1761849864345,8.79202977,181.48,181.46,0.65]
[1761849864549,8.79202977,181.5,181.47,0.65]
[1761849864749,4.00696618,181.49,181.47,0.65]
[1761849865044,8.79202977,181.5,181.47,0.65]
[1761849865272,8.79202977,181.48,181.47,0.65]
[1761849865582,8.79202977,181.48,181.47,20.592]
[1761849869979,8.79202977,181.48,181.44,67.31145225]
[1761849870179,5.50997125,181.49,181.45,0.65]
[1761849870362,8.79202977,181.46,181.45,0.65]
[1761849872560,8.79202977,181.46,181.45,6.16116009]
[1761849872761,8.79202977,181.47,181.45,6.16116009]
[1761849873465,5.79984984,181.47,181.45,6.16116009]
[1761849874459,5.79984984,181.47,181.45,67.86116009]
[1761849874664,9.78882769,181.54,181.45,61.7]
[1761849874665,5.79984984,181.46,181.45,61.7]
[1761849875067,6.46984984,181.46,181.44,0.1]
[1761849875374,2.27903412,181.45,181.44,0.1]
[1761849876864,21.57497693,181.45,181.44,0.1]
[1761849877368,12.45884045,181.45,181.44,0.1]
[1761849877788,6.94768036,181.45,181.44,0.1]
[1761849877991,6.27768036,181.45,181.44,0.1]
[1761849878160,2.27903412,181.45,181.44,0.1]
[1761849878670,2.27903412,181.46,181.44,0.1]
[1761849879487,2.27903412,181.46,181.44,0.78]
[1761849879783,6.18001159,181.49,181.44,0.78]
[1761849879986,2.27903412,181.45,181.44,0.1]
[1761849880191,11.3951706,181.45,181.44,0.1]
[1761849880398,2.98903412,181.45,181.44,0.1]
[1761849880580,12.49274005,181.45,181.44,0.1]
[1761849880893,10.21370593,181.45,181.44,0.1]
[1761849881068,12.49274005,181.45,181.44,0.1]
[1761849881386,12.02425595,181.45,181.44,0.1]
[1761849882087,21.81308364,181.45,181.44,0.1]
[1761849882387,25.80506046,181.45,181.44,0.1]
[1761849882574,10.21313691,181.45,181.44,0.1]
[1761849882892,11.31425595,181.45,181.44,0.1]
[1761849883205,14.48493636,181.49,181.44,0.1]
[1761849883367,4.70065216,181.48,181.44,0.78]
[1761849883562,5.80309586,181.47,181.44,0.78]
[1761849883963,5.51024906,181.48,181.44,0.78]
[1761849884177,5.80309586,181.47,181.44,0.78]
[1761849885276,5.80309586,181.45,181.44,0.1]
[1761849885473,5.80309586,181.45,181.44,0.78]
[1761849885777,5.80309586,181.46,181.44,0.78]
[1761849886868,5.80309586,181.46,181.44,0.1]
[1761849887898,11.31402752,181.46,181.44,0.1]
[1761849888098,5.80309586,181.47,181.45,0.68]
[1761849888291,5.80309586,181.51,181.46,11.31395224]
[1761849888492,5.80309586,181.5,181.46,6.19085638]
[1761849888877,5.80309586,181.5,181.46,0.68]
[1761849889079,2.8803571,181.54,181.47,0.68]
[1761849889278,5.80309586,181.51,181.47,0.68]
[1761849889477,5.80309586,181.5,181.45,73.01421037]
[1761849889691,5.80309586,181.5,181.44,0.1]
[1761849889692,5.80309586,181.48,181.44,0.1]
[1761849889889,5.80309586,181.47,181.45,0.68]
[1761849890205,5.80309586,181.48,181.45,0.68]
[1761849890681,5.80309586,181.49,181.45,6.19109967]
[1761849890892,5.80309586,181.51,181.46,0.68]
[1761849891087,14.48182834,181.53,181.46,0.68]
[1761849891403,5.80309586,181.51,181.46,6.48309586]
[1761849891818,5.80309586,181.51,181.47,0.68]
[1761849891976,5.80309586,181.53,181.48,5.80309586]
[1761849892176,5.80309586,181.55,181.49,5.80309586]
[1761849892377,3.98873504,181.54,181.5,5.50964187]
[1761849892609,3.98873504,181.54,181.5,6.18964187]
[1761849892813,9.7918309,181.54,181.51,0.68]
[1761849893015,5.80309586,181.53,181.49,61.7]
[1761849893368,3.9900478,181.52,181.45,11.31420096]
[1761849893507,6.21851047,181.54,181.49,0.68]
[1761849893811,9.79549568,181.53,181.49,0.68]
[1761849894008,6.51309586,181.53,181.47,61.7]
[1761849894316,5.50851047,181.54,181.48,0.68]
[1761849894317,9.79712543,181.52,181.48,0.68]
[1761849894495,5.80309586,181.52,181.48,6.1901158]
[1761849894901,5.80309586,181.52,181.49,0.68]
[1761849895698,5.80309586,181.53,181.49,0.68]
[1761849895902,5.80309586,181.54,181.49,0.68]
[1761849896107,3.99495894,181.53,181.49,0.68]
[1761849896304,5.80309586,181.54,181.49,6.48309586]
[1761849896508,5.80309586,181.54,181.5,5.50964187]
[1761849896815,3.99452774,181.53,181.5,6.18964187]
[1761849897199,5.80309586,181.54,181.5,0.68]
[1761849897415,3.99422486,181.53,181.5,0.68]
[1761849897821,3.99422486,181.53,181.5,6.48309586]
[1761849897996,5.50726461,181.58,181.51,5.80309586]
[1761849898193,3.99512211,181.57,181.52,5.80309586]
[1761849898397,3.99512211,181.57,181.52,6.48309586]
[1761849898586,4.49327878,181.6,181.56,26.39509586]
[1761849898790,6.51309586,181.64,181.59,5.80309586]
[1761849898985,3.99692242,181.63,181.59,6.48309586]
[1761849900014,9.50265273,181.63,181.59,6.48309586]
[1761849900226,3.99692242,181.62,181.59,0.68]
[1761849900530,9.78882769,181.59,181.51,0.68]
[1761849900817,15.59192355,181.61,181.51,6.48309586]
[1761849900818,5.80309586,181.56,181.51,6.48309586]
[1761849901186,5.80309586,181.57,181.52,0.68]
[1761849901381,3.99895367,181.56,181.52,0.68]
[1761849901585,5.80309586,181.54,181.49,6.48309586]
[1761849901787,5.80309586,181.55,181.5,6.48309586]
[1761849902199,6.51309586,181.54,181.48,0.68]
[1761849902416,5.80309586,181.54,181.49,21.272]
[1761849902594,5.80309586,181.54,181.49,11.99284148]
[1761849902795,12.02163762,181.54,181.49,11.99284148]
[1761849902994,11.31163762,181.54,181.5,0.68]
[1761849903224,9.80223364,181.53,181.5,0.68]
[1761849903515,2.27623005,181.53,181.49,20.592]
[1761849903708,0.71,181.52,181.49,82.292]
[1761849903910,2.27623005,181.53,181.49,82.292]
[1761849903911,2.98623005,181.53,181.49,82.292]
[1761849904099,2.98623005,181.53,181.49,82.972]
[1761849904435,2.27623005,181.52,181.49,21.272]
[1761849904988,2.27623005,181.54,181.5,0.68]
[1761849905422,2.98623005,181.54,181.49,26.78177901]
[1761849905903,0.71,181.54,181.5,0.68]
[1761849906098,2.27623005,181.53,181.5,0.68]
[1761849906300,8.49474497,181.54,181.5,6.18954156]
[1761849906607,8.49474497,181.54,181.49,26.78190782]
[1761849906810,8.49474497,181.54,181.49,26.10190782]
[1761849906998,8.49474497,181.54,181.5,0.68]
[1761849907328,5.50816109,181.55,181.5,0.68]
[1761849907490,6.27774105,181.54,181.5,0.68]
[1761849907825,13.76709885,181.6,181.52,2.27623005]
[1761849907985,4.0040276,181.59,181.53,0.68]
[1761849908191,2.98623005,181.62,181.57,7.78355778]
[1761849908411,4.00386174,181.61,181.57,5.50732773]
[1761849908607,4.00386174,181.61,181.57,8.46355778]
[1761849909008,6.99009179,181.61,181.55,21.272]
[1761849909317,7.78231767,181.62,181.57,2.27623005]
[1761849909503,4.00315291,181.61,181.57,2.27623005]
[1761849909704,4.00315291,181.61,181.58,2.97623005]
[1761849909908,2.27623005,181.64,181.58,2.97623005]
[1761849910135,4.00357499,181.63,181.59,0.7]
[1761849910323,9.50928667,181.63,181.59,0.7]
[1761849910527,4.00142229,181.62,181.59,0.7]
[1761849910713,8.48194173,181.63,181.58,2.27623005]
[1761849910911,8.48194173,181.63,181.58,8.48336802]
[1761849911115,4.0005281,181.62,181.58,8.48344007]
[1761849911333,2.97623005,181.63,181.58,8.48344007]
[1761849911904,8.48194859,181.63,181.58,0.7]
[1761849912105,7.78194859,181.63,181.58,0.7]
[1761849912443,2.27623005,181.59,181.54,0.7]
[1761849912610,2.27623005,181.58,181.52,2.27623005]
[1761849912931,2.27623005,181.57,181.52,5.50881683]
[1761849913432,5.79379989,181.57,181.53,0.7]
[1761849913821,5.79379989,181.57,181.52,67.20881683]
[1761849914012,0.7,181.57,181.52,67.90881683]
[1761849914208,5.79379989,181.56,181.52,67.90881683]
[1761849914410,5.79379989,181.56,181.52,62.4]
[1761849914650,5.79379989,181.56,181.52,67.90891315]
[1761849915233,5.79379989,181.56,181.52,67.20891315]
[1761849915440,5.79379989,181.56,181.52,67.87891315]
[1761849915958,5.79379989,181.58,181.53,6.46379989]
[1761849916146,5.50571078,181.63,181.57,5.79379989]
[1761849916327,5.79379989,181.63,181.58,6.46379989]
[1761849916524,11.29977562,181.63,181.58,0.67]
[1761849916726,11.29977562,181.63,181.58,6.17716124]
[1761849917037,11.95977562,181.63,181.58,6.17716124]
[1761849917419,0.66,181.62,181.55,0.67]
[1761849917657,6.45379989,181.62,181.57,5.79379989]
[1761849917862,5.5052862,181.65,181.58,5.79379989]
[1761849918164,12.66705752,181.67,181.56,0.67]
[1761849918165,5.79379989,181.64,181.59,5.79379989]
[1761849918335,5.79379989,181.65,181.6,5.79379989]
[1761849918749,3.53822983,181.67,181.61,6.46379989]
[1761849918957,9.78912113,181.66,181.61,6.46379989]
[1761849919266,5.79379989,181.66,181.61,0.67]
[1761849919566,0.66,181.68,181.62,0.67]
[1761849919859,5.79379989,181.66,181.62,0.67]
[1761849920067,5.79379989,181.69,181.63,5.79379989]
[1761849920363,11.29775064,181.69,181.63,5.79379989]
[1761849920536,11.29775064,181.69,181.63,6.46379989]
[1761849920738,11.95775064,181.69,181.63,11.96928486]
[1761849921358,0.2,181.74,181.67,5.79379989]
[1761849921534,5.79379989,181.73,181.67,5.79379989]
[1761849921734,5.79379989,181.73,181.67,6.46379989]
[1761849921966,5.79379989,181.73,181.67,5.79379989]
[1761849922192,5.99379989,181.74,181.68,6.46379989]
[1761849922464,5.99379989,181.74,181.7,5.79379989]
[1761849922465,0.2,181.74,181.7,5.79379989]
[1761849922759,0.2,181.74,181.72,5.79379989]
[1761849923070,0.2,181.74,181.71,11.29707433]
[1761849923240,0.2,181.74,181.72,0.67]
[1761849924022,0.2,181.74,181.72,6.46379989]
[1761849924226,0.2,181.74,181.69,26.09570447]
[1761849924426,5.79379989,181.73,181.68,5.79379989]
[1761849924644,0.86,181.74,181.69,6.17375824]
[1761849924845,5.79379989,181.73,181.69,6.17375824]
[1761849925053,0.2,181.74,181.7,0.67]
[1761849925643,5.99379989,181.74,181.7,0.67]
[1761849926729,5.99379989,181.74,181.69,26.09575824]
[1761849927058,5.99379989,181.74,181.7,0.67]
[1761849927554,0.2,181.74,181.7,68.16379989]
[1761849927760,0.2,181.74,181.73,20.592]
[1761849927930,0.2,181.74,181.73,82.292]
[1761849928263,0.2,181.74,181.73,82.962]
[1761849928553,0.2,181.74,181.73,88.75579989]
[1761849928752,0.2,181.74,181.73,94.25846868]
[1761849928958,0.2,181.74,181.73,82.292]
[1761849929127,0.2,181.74,181.73,88.46466879]
[1761849929332,0.2,181.74,181.73,94.25846868]
[1761849931058,0.2,181.74,181.73,32.55846868]
[1761849931638,0.2,181.74,181.73,20.592]
[1761849932949,5.99379989,181.74,181.71,61.7]
[1761849933132,5.99379989,181.74,181.7,5.50353631]
[1761849933448,0.2,181.74,181.71,0.67]
[1761849933757,0.2,181.74,181.71,6.46379989]
[1761849934131,0.2,181.74,181.71,0.67]
[1761849934330,0.2,181.74,181.72,0.67]
[1761849934530,0.2,181.74,181.71,0.67]
[1761849935261,0.2,181.74,181.71,6.1731199]
[1761849935464,0.2,181.74,181.71,14.95755752]
[1761849935967,0.2,181.74,181.72,0.67]
[1761849936148,0.86,181.74,181.72,61.7]
[1761849936353,8.78443762,181.73,181.72,61.7]
[1761849936555,9.44443762,181.73,181.72,61.7]
[1761849936863,8.98443762,181.74,181.72,61.7]
[1761849937246,0.2,181.74,181.72,67.20292906]
[1761849937454,0.2,181.74,181.72,67.87292906]
[1761849939076,0.2,181.74,181.72,67.20292906]
[1761849939759,0.2,181.74,181.72,61.7]
[1761849940378,0.2,181.74,181.72,67.20295151]
[1761849940585,0.2,181.74,181.72,67.92295151]
[1761849940878,0.2,181.74,181.72,67.20295151]
[1761849941374,0.2,181.74,181.72,67.92295151]
[1761849941675,0.2,181.74,181.72,67.20295151]
[1761849942960,0.2,181.74,181.72,67.92295151]
[1761849944777,0.2,181.74,181.72,61.7]
[1761849945483,0.2,181.74,181.72,67.20295288]
[1761849945683,0.2,181.74,181.72,67.92295288]
[1761849946370,0.2,181.74,181.72,67.20295288]
[1761849946570,0.2,181.74,181.72,61.7]
[1761849946767,9.67443762,181.74,181.72,61.7]
[1761849946987,0.2,181.74,181.72,67.20287111]
[1761849947166,0.2,181.74,181.72,67.92287111]
[1761849947361,0.2,181.74,181.7,29.37643762]
[1761849947567,9.67443762,181.74,181.7,26.09550241]
[1761849947785,9.67443762,181.74,181.7,26.81550241]
[1761849948370,8.98443762,181.74,181.7,26.81550241]
[1761849948583,0.2,181.74,181.71,9.50443762]
[1761849948887,0.2,181.74,181.71,0.72]
[1761849949091,0.2,181.74,181.71,9.50443762]
[1761849949479,0.2,181.74,181.72,5.5029716]
[1761849949678,0.89,181.74,181.71,5.50326566]
[1761849949886,9.67443762,181.74,181.71,5.50326566]
[1761849950274,8.98443762,181.74,181.71,5.50326566]
[1761849950592,0.2,181.74,181.71,5.50326566]
[1761849951075,0.2,181.74,181.71,6.22326566]
[1761849952791,0.2,181.74,181.71,5.50326566]
[1761849953694,0.2,181.74,181.71,67.20326566]
[1761849953881,0.2,181.74,181.73,20.592]
[1761849955494,0.89,181.74,181.73,20.592]
[1761849957575,0.2,181.74,181.73,20.592]
[1761849959084,0.89,181.74,181.73,20.592]
[1761849959598,0.2,181.74,181.73,20.592]
[1761849960499,19.72934075,181.74,181.67,3.54814705]
[1761849960678,3.54814705,181.71,181.66,4.26814705]
[1761849961017,0.69,181.73,181.68,3.54814705]
[1761849961206,4.0085697,181.73,181.7,9.05172437]
[1761849961375,0.2,181.74,181.71,0.72]
[1761849961577,0.2,181.74,181.72,3.54814705]
[1761849961785,0.2,181.74,181.71,4.26814705]
[1761849961984,0.2,181.74,181.73,20.592]
[1761849962185,0.2,181.74,181.73,24.14014705]
[1761849962396,0.2,181.74,181.73,24.86014705]
[1761849962603,0.2,181.74,181.73,4.26814705]
[1761849963216,0.2,181.74,181.73,9.77081584]
[1761849964378,0.2,181.75,181.73,9.77081584]
[1761849964601,0.2,181.82,181.77,20.592]
[1761849964908,4.01849569,181.81,181.79,3.54814705]
[1761849965206,4.01849569,181.8,181.79,9.04899968]
[1761849965607,4.01849569,181.81,181.79,9.04899968]
[1761849965800,4.01849569,181.8,181.79,9.04899968]
[1761849965992,4.01849569,181.81,181.79,9.04899968]
[1761849966301,4.01849569,181.8,181.78,3.54814705]
[1761849966505,0.89,181.82,181.8,20.592]
[1761849966704,4.02522891,181.81,181.8,20.592]
[1761849967579,8.26337596,181.81,181.77,20.592]
[1761849967813,4.71522891,181.8,181.77,20.592]
[1761849967988,4.02522891,181.79,181.78,20.592]
[1761849968537,4.71522891,181.79,181.78,20.592]
[1761849968883,4.71522891,181.79,181.75,70.75021032]
[1761849968884,8.26337596,181.79,181.75,67.20206327]
[1761849969083,8.26337596,181.78,181.75,67.20206327]
[1761849969284,4.02522891,181.77,181.76,0.72]
[1761849969505,4.02070883,181.8,181.78,20.592]
[1761849969679,3.74814705,181.82,181.78,20.592]
[1761849969876,8.2889333,181.81,181.78,20.592]
[1761849970098,4.02078625,181.8,181.78,20.592]
[1761849970377,4.02078625,181.79,181.78,20.592]
[1761849970576,8.2889333,181.81,181.78,20.592]
[1761849970778,4.02078625,181.8,181.78,20.592]
[1761849970979,4.02078625,181.79,181.78,20.592]
[1761849971210,4.02078625,181.8,181.78,20.592]
[1761849971722,4.02078625,181.8,181.78,26.09307991]
[1761849971880,4.02078625,181.79,181.78,26.09307991]
[1761849972246,4.02078625,181.81,181.78,26.09307991]
[1761849972615,4.74078625,181.81,181.78,26.09307991]
[1761849972812,4.02078625,181.8,181.78,26.09307991]
[1761849973015,0.2,181.82,181.78,26.09307991]
[1761849973223,0.92,181.82,181.78,26.09307991]
[1761849973426,0.2,181.82,181.8,3.54814705]
[1761849973723,0.2,181.82,181.81,4.26814705]
[1761849974331,0.2,181.82,181.8,3.54814705]
[1761849974739,0.2,181.82,181.8,4.26814705]
[1761849974915,0.2,181.82,181.78,91.34122696]
[1761849975118,3.54814705,181.8,181.75,65.24814705]
[1761849975322,4.26814705,181.81,181.76,5.50172258]
[1761849975520,4.02023686,181.8,181.76,5.50172258]
[1761849975726,4.69023686,181.8,181.76,5.50172258]
[1761849976049,8.23838391,181.8,181.76,5.50172258]
[1761849976207,0.67,181.79,181.76,5.50172258]
[1761849976409,4.41814705,181.82,181.77,0.72]
[1761849976734,4.01964784,181.81,181.77,0.72]
[1761849976934,4.68964784,181.81,181.77,0.72]
[1761849977136,4.01964784,181.81,181.77,4.26814705]
[1761849977432,0.2,181.82,181.78,5.50115524]
[1761849977630,4.22081297,181.82,181.79,24.14014705]
[1761849977816,0.2,181.82,181.81,20.592]
[1761849978218,0.2,181.82,181.81,21.312]
[1761849978606,0.2,181.82,181.81,83.012]
[1761849978806,0.2,181.82,181.81,82.292]
[1761849979031,0.2,181.82,181.81,85.84014705]
[1761849979234,0.2,181.82,181.81,92.06039456]
[1761849979933,0.2,181.82,181.81,82.292]
[1761849980110,0.2,181.82,181.81,87.79224751]
[1761849981010,0.2,181.82,181.81,30.36039456]
[1761849981622,0.2,181.82,181.81,26.09224751]
[1761849981928,0.2,181.82,181.81,29.64039456]
[1761849982130,0.2,181.82,181.81,26.09224751]
[1761849983108,0.2,181.82,181.81,30.36039456]
[1761849984124,0.2,181.82,181.81,29.64039456]
[1761849985230,0.2,181.82,181.81,30.36039456]
[1761849985631,0.2,181.82,181.81,29.64039456]
[1761849986240,0.2,181.82,181.81,30.36039456]
[1761849986954,0.2,181.82,181.81,26.09224751]
[1761849987246,4.01272455,181.86,181.81,26.09224751]
[1761849987247,0.67,181.86,181.81,26.81224751]
[1761849987450,0.67,181.85,181.81,26.81224751]
[1761849987836,0.67,181.85,181.81,44.11101333]
[1761849988050,3.54814705,181.87,181.81,43.39101333]
[1761849988353,3.54814705,181.87,181.83,5.49964252]
[1761849988531,15.28688702,181.89,181.83,5.49964252]
[1761849988741,4.21814705,181.87,181.83,5.49964252]
[1761849988931,0.67,181.87,181.83,5.49964252]
[1761849989128,3.54814705,181.87,181.83,5.49964252]
[1761849989329,0.67,181.86,181.83,5.49964252]
[1761849989957,9.7170264,181.86,181.81,29.64032509]
[1761849990132,9.7170264,181.86,181.81,30.36032509]
[1761849990541,4.21814705,181.85,181.81,26.09217804]
[1761849990952,0.67,181.84,181.81,26.09217804]
[1761849991252,3.54814705,181.85,181.81,26.09217804]
[1761849991547,0.67,181.87,181.82,0.72]
[1761849991750,3.54814705,181.86,181.82,0.72]
[1761849991929,0.2,181.9,181.85,3.54814705]
[1761849992252,0.2,181.9,181.88,3.54814705]
[1761849992754,0.2,181.9,181.86,20.592]
[1761849993063,0.87,181.9,181.86,20.592]
[1761849993264,3.54814705,181.89,181.86,26.09062747]
[1761849993462,4.21814705,181.89,181.86,26.09062747]
[1761849993960,0.67,181.89,181.86,26.09062747]
[1761849994165,3.54814705,181.89,181.86,26.09062747]
[1761849994466,3.54814705,181.87,181.84,20.592]
[1761849994636,3.54814705,181.86,181.84,20.592]
[1761849995150,0.67,181.85,181.84,20.592]
[1761849995372,3.54814705,181.86,181.84,20.592]
[1761849995530,3.54814705,181.87,181.83,26.09142643]
[1761849995735,5.49811798,181.89,181.83,26.09142643]
[1761849995736,4.21814705,181.86,181.83,20.592]
[1761849996138,4.21814705,181.86,181.83,26.09157805]
[1761849996731,3.54814705,181.87,181.83,26.09157805]
[1761849996927,3.54814705,181.88,181.83,39.84068435]
[1761849997157,3.54814705,181.89,181.86,20.592]
[1761849997357,3.13735676,181.9,181.87,5.49843294]
[1761849997548,0.87,181.9,181.87,5.49843294]
[1761849997954,0.87,181.9,181.86,20.592]
[1761849997955,0.67,181.89,181.86,20.592]
[1761849998466,0.67,181.89,181.86,26.09072553]
[1761849999251,0.67,181.89,181.86,20.592]
[1761849999456,2.93735676,181.89,181.86,20.592]
[1761849999647,2.26735676,181.87,181.8,61.7]
[1761849999828,0.67,181.86,181.8,2.26735676]
[1761850000029,2.26735676,181.85,181.82,20.592]
[1761850000543,2.93735676,181.85,181.83,20.592]
[1761850000844,2.93735676,181.84,181.75,73.3]
[1761850001034,2.26735676,181.82,181.76,2.94735676]
[1761850001232,19.24247772,181.89,181.79,20.592]
[1761850001434,0.67,181.86,181.81,5.50024751]
[1761850001654,2.26735676,181.85,181.81,6.18024751]
[1761850001839,2.93735676,181.86,181.81,6.18024751]
[1761850002731,5.49839854,181.88,181.82,0.68]
[1761850002732,2.93735676,181.87,181.82,0.68]
[1761850002937,2.26735676,181.87,181.82,0.68]
[1761850003142,0.67,181.86,181.82,0.68]
[1761850003461,5.49839854,181.88,181.83,5.49964252]
[1761850003756,2.93735676,181.87,181.83,5.49964252]
[1761850004859,2.26735676,181.89,181.84,0.68]
[1761850005038,0.87,181.9,181.85,2.26735676]
[1761850005438,0.87,181.9,181.85,2.94735676]
[1761850005758,0.2,181.9,181.87,20.592]
[1761850006863,0.2,181.9,181.87,26.09030358]
[1761850007236,0.67,181.89,181.87,20.592]
[1761850008149,2.46735676,181.9,181.87,20.592]
[1761850008350,3.13735676,181.9,181.87,20.592]
[1761850008752,0.87,181.9,181.87,26.09037785]
[1761850009340,0.87,181.9,181.87,20.592]
[1761850011240,0.67,181.89,181.87,20.592]
[1761850012261,2.46735676,181.9,181.87,20.592]
[1761850012453,3.13735676,181.9,181.87,20.592]
[1761850012642,2.46735676,181.9,181.87,26.09030385]
[1761850012842,0.2,181.9,181.87,26.09030385]
[1761850013060,0.2,181.9,181.87,20.592]
[1761850013259,0.87,181.9,181.87,20.592]